[Event "*** Titled Tuesday Blitz"]
[Site "Chess.com"]
[Date "2019.04.02"]
[Round "8"]
[White "santosalberto1987"]
[Black "Touching3200"]
[Result "1-0"]
[WhiteElo "2430"]
[BlackElo "2378"]
[TimeControl "180+2"]
[EndTime "15:49:23 PDT"]
[Termination "santosalberto1987 won by resignation"]

1. e4 {[%clk 0:02:56.7]} 1... c5 {[%clk 0:03:00.3]} 2. Nf3 {[%clk 0:02:54.4]}
2... d6 {[%clk 0:03:01]} 3. Bb5+ {[%clk 0:02:53.1]} 3... Bd7 {[%clk 0:03:01.6]}
4. Bxd7+ {[%clk 0:02:53.8]} 4... Nxd7 {[%clk 0:03:03.5]} 5. c4 {[%clk
0:02:45.1]} 5... Ngf6 {[%clk 0:03:04.7]} 6. Nc3 {[%clk 0:02:42]} 6... e5 {[%clk
0:03:05.4]} 7. O-O {[%clk 0:02:41.8]} 7... Be7 {[%clk 0:03:02.7]} 8. Ne1 {[%clk
0:02:35.3]} 8... Nf8 {[%clk 0:03:02.3]} 9. d3 {[%clk 0:02:35.1]} 9... Ne6 {[%clk
0:03:03.2]} 10. Nc2 {[%clk 0:02:34.8]} 10... O-O {[%clk 0:02:52]} 11. Ne3 {[%clk
0:02:35.6]} 11... Nd4 {[%clk 0:02:48.9]} 12. Ned5 {[%clk 0:02:36.1]} 12... Nxd5
{[%clk 0:02:48.8]} 13. Nxd5 {[%clk 0:02:37]} 13... Bg5 {[%clk 0:02:49.8]} 14.
Be3 {[%clk 0:02:33.9]} 14... Ne6 {[%clk 0:02:42.1]} 15. Qg4 {[%clk 0:02:24.1]}
15... g6 {[%clk 0:02:36.3]} 16. f4 {[%clk 0:02:04.9]} 16... exf4 {[%clk
0:02:30.1]} 17. Nxf4 {[%clk 0:01:32.1]} 17... Bxf4 {[%clk 0:01:51.4]} 18. Bxf4
{[%clk 0:01:32]} 18... h5 {[%clk 0:01:42.1]} 19. Qg3 {[%clk 0:01:27.2]} 19...
Nd4 {[%clk 0:01:34.2]} 20. Kh1 {[%clk 0:01:14.2]} 20... Ne2 {[%clk 0:01:28.1]}
21. Qe3 {[%clk 0:01:10.8]} 21... Nxf4 {[%clk 0:01:27.9]} 22. Rxf4 {[%clk
0:01:12.7]} 22... Qg5 {[%clk 0:01:27.9]} 23. Raf1 {[%clk 0:01:12.2]} 23... Rae8
{[%clk 0:01:27.8]} 24. Qf3 {[%clk 0:01:09.4]} 24... Re7 {[%clk 0:01:27.4]} 25.
Rf6 {[%clk 0:01:09.9]} 25... Qe5 {[%clk 0:01:27.9]} 26. b3 {[%clk 0:01:09.3]}
26... Kg7 {[%clk 0:01:22.6]} 27. h3 {[%clk 0:01:06.1]} 27... a6 {[%clk
0:01:05.1]} 28. Kg1 {[%clk 0:01:03.9]} 28... b5 {[%clk 0:01:04.9]} 29. cxb5
{[%clk 0:01:03.5]} 29... axb5 {[%clk 0:01:06.8]} 30. a4 {[%clk 0:01:04.4]} 30...
bxa4 {[%clk 0:01:04.6]} 31. bxa4 {[%clk 0:01:06.3]} 31... Qd4+ {[%clk
0:01:04.4]} 32. Kh1 {[%clk 0:01:07.3]} 32... Qxa4 {[%clk 0:01:03.1]} 33. Rxg6+
{[%clk 0:01:04.5]} 33... Kxg6 {[%clk 0:01:01.4]} 34. Qf6+ {[%clk 0:01:01]} 34...
Kh7 {[%clk 0:01:02.3]} 35. Qxe7 {[%clk 0:00:56.9]} 35... Qe8 {[%clk 0:00:48.6]}
36. Qxd6 {[%clk 0:00:54.3]} 36... Qc8 {[%clk 0:00:46.2]} 37. Rf5 {[%clk
0:00:53.4]} 37... f6 {[%clk 0:00:37.2]} 38. Rxh5+ {[%clk 0:00:50.6]} 38... Kg6
{[%clk 0:00:38.5]} 39. Rxc5 {[%clk 0:00:50.8]} 39... Qb7 {[%clk 0:00:34.1]} 40.
Qxf8 {[%clk 0:00:47.6]} 1-0

[Event "*** Titled Tuesday Blitz"]
[Site "Chess.com"]
[Date "2019.04.02"]
[Round "8"]
[White "gonzaga23"]
[Black "tteshan"]
[Result "1-0"]
[WhiteElo "2353"]
[BlackElo "2192"]
[TimeControl "180+2"]
[EndTime "15:49:29 PDT"]
[Termination "gonzaga23 won by resignation"]

1. e4 {[%clk 0:03:01.9]} 1... d6 {[%clk 0:02:58.6]} 2. d4 {[%clk 0:03:01.8]}
2... Nf6 {[%clk 0:03:00]} 3. Nc3 {[%clk 0:02:54.8]} 3... Nbd7 {[%clk 0:03:00.7]}
4. Be2 {[%clk 0:02:53.9]} 4... e5 {[%clk 0:03:02.1]} 5. dxe5 {[%clk 0:02:54.4]}
5... dxe5 {[%clk 0:03:04]} 6. Bg5 {[%clk 0:02:51.9]} 6... Be7 {[%clk 0:03:03.5]}
7. Nf3 {[%clk 0:02:50.8]} 7... c6 {[%clk 0:03:03]} 8. O-O {[%clk 0:02:47.6]}
8... Qc7 {[%clk 0:03:03]} 9. Re1 {[%clk 0:02:47.4]} 9... b5 {[%clk 0:03:03.7]}
10. a3 {[%clk 0:02:46.6]} 10... h6 {[%clk 0:03:02.7]} 11. Bxf6 {[%clk
0:02:41.9]} 11... Nxf6 {[%clk 0:03:00.8]} 12. Bd3 {[%clk 0:01:57.8]} 12... Bg4
{[%clk 0:02:55.3]} 13. Qe2 {[%clk 0:01:34]} 13... Nh5 {[%clk 0:02:36.5]} 14. Qe3
{[%clk 0:01:30.6]} 14... Nf4 {[%clk 0:02:35.6]} 15. Ne2 {[%clk 0:01:32.1]} 15...
Bxf3 {[%clk 0:02:31.2]} 16. Nxf4 {[%clk 0:01:21.2]} 16... Bg4 {[%clk 0:01:51.9]}
17. Qg3 {[%clk 0:01:16.3]} 17... h5 {[%clk 0:01:41.1]} 18. Ne2 {[%clk
0:01:06.6]} 18... Bd6 {[%clk 0:01:18.2]} 19. h3 {[%clk 0:01:05]} 19... Bxe2
{[%clk 0:01:16.1]} 20. Rxe2 {[%clk 0:01:06.9]} 20... f6 {[%clk 0:01:13.9]} 21.
c3 {[%clk 0:01:00.7]} 21... Bc5 {[%clk 0:01:09.8]} 22. a4 {[%clk 0:00:59.8]}
22... h4 {[%clk 0:00:58.8]} 23. Qg6+ {[%clk 0:00:57.9]} 23... Qf7 {[%clk
0:00:47]} 24. Qxf7+ {[%clk 0:00:58.2]} 24... Kxf7 {[%clk 0:00:48.9]} 25. axb5
{[%clk 0:00:59.7]} 25... cxb5 {[%clk 0:00:44]} 26. Bxb5 {[%clk 0:01:00.6]} 26...
Rab8 {[%clk 0:00:43.8]} 27. Bc4+ {[%clk 0:00:50.8]} 27... Ke7 {[%clk 0:00:43.8]}
28. b4 {[%clk 0:00:51]} 28... Bb6 {[%clk 0:00:44.9]} 29. Bd5 {[%clk 0:00:48.6]}
29... Rhc8 {[%clk 0:00:39.7]} 30. c4 {[%clk 0:00:48.2]} 30... Bd4 {[%clk
0:00:38]} 31. Ra4 {[%clk 0:00:48.9]} 31... Rc7 {[%clk 0:00:35]} 32. Rea2 {[%clk
0:00:45.4]} 32... g5 {[%clk 0:00:30.6]} 33. c5 {[%clk 0:00:39.1]} 33... Bc3
{[%clk 0:00:24.3]} 34. Rxa7 {[%clk 0:00:38.2]} 34... Kd8 {[%clk 0:00:21.9]} 35.
Rxc7 {[%clk 0:00:36.2]} 35... Kxc7 {[%clk 0:00:23.8]} 36. Ra7+ {[%clk
0:00:37.6]} 36... Kd8 {[%clk 0:00:24.9]} 37. c6 {[%clk 0:00:36.7]} 37... Rxb4
{[%clk 0:00:22.5]} 38. c7+ {[%clk 0:00:36.7]} 38... Kd7 {[%clk 0:00:21.9]} 39.
Be6+ {[%clk 0:00:37.5]} 39... Kxe6 {[%clk 0:00:22.8]} 40. c8=Q+ {[%clk
0:00:38.5]} 40... Kd6 {[%clk 0:00:24.7]} 41. Rd7+ {[%clk 0:00:35.8]} 1-0

[Event "*** Titled Tuesday Blitz"]
[Site "Chess.com"]
[Date "2019.04.02"]
[Round "8"]
[White "StephenDedalus83"]
[Black "albi1999"]
[Result "1-0"]
[WhiteElo "2667"]
[BlackElo "2633"]
[TimeControl "180+2"]
[EndTime "15:49:34 PDT"]
[Termination "StephenDedalus83 won by resignation"]

1. e4 {[%clk 0:03:01.9]} 1... e5 {[%clk 0:03:00.8]} 2. Nf3 {[%clk 0:03:02.7]}
2... Nc6 {[%clk 0:03:01.8]} 3. Bb5 {[%clk 0:03:03.3]} 3... a6 {[%clk 0:03:03.3]}
4. Ba4 {[%clk 0:03:04.5]} 4... Nf6 {[%clk 0:03:04.2]} 5. O-O {[%clk 0:03:05.8]}
5... b5 {[%clk 0:03:02]} 6. Bb3 {[%clk 0:03:06.2]} 6... Be7 {[%clk 0:03:03.2]}
7. Re1 {[%clk 0:03:06.2]} 7... d6 {[%clk 0:03:01.8]} 8. c3 {[%clk 0:03:06.8]}
8... O-O {[%clk 0:03:02.8]} 9. h3 {[%clk 0:03:07.9]} 9... Na5 {[%clk 0:03:04.3]}
10. Bc2 {[%clk 0:03:08.5]} 10... c5 {[%clk 0:03:06.2]} 11. d4 {[%clk 0:03:09.5]}
11... Qc7 {[%clk 0:03:07.7]} 12. Nbd2 {[%clk 0:03:10.6]} 12... cxd4 {[%clk
0:03:03.6]} 13. cxd4 {[%clk 0:03:11.2]} 13... Nc6 {[%clk 0:03:04.9]} 14. a3
{[%clk 0:03:12.2]} 14... exd4 {[%clk 0:02:54.1]} 15. Nb3 {[%clk 0:03:12.7]}
15... Bd7 {[%clk 0:02:47.7]} 16. Bf4 {[%clk 0:03:13.3]} 16... Ne5 {[%clk
0:02:42.8]} 17. Nbxd4 {[%clk 0:03:06.3]} 17... Rac8 {[%clk 0:02:42.9]} 18. Bb3
{[%clk 0:03:04.8]} 18... Nc4 {[%clk 0:02:33.9]} 19. Re2 {[%clk 0:02:33.2]} 19...
Rfe8 {[%clk 0:02:23.8]} 20. Rc1 {[%clk 0:02:07.9]} 20... Qb7 {[%clk 0:02:23.6]}
21. Qe1 {[%clk 0:01:42.2]} 21... Bf8 {[%clk 0:02:12.9]} 22. e5 {[%clk
0:01:32.5]} 22... Nd5 {[%clk 0:02:08.1]} 23. Bg3 {[%clk 0:01:28.1]} 23... dxe5
{[%clk 0:02:07.9]} 24. Nxe5 {[%clk 0:01:28.1]} 24... Ndb6 {[%clk 0:02:00.6]} 25.
Nxd7 {[%clk 0:01:25.4]} 25... Qxd7 {[%clk 0:01:59.6]} 26. Rd1 {[%clk 0:01:24.4]}
26... Rcd8 {[%clk 0:01:46.2]} 27. Ne6 {[%clk 0:01:15.3]} 27... Qxe6 {[%clk
0:01:21.3]} 28. Rxe6 {[%clk 0:01:14.6]} 28... Rxe6 {[%clk 0:01:15.2]} 29. Qf1
{[%clk 0:01:12.9]} 29... Rxd1 {[%clk 0:01:10.4]} 30. Qxd1 {[%clk 0:01:09.3]}
30... g6 {[%clk 0:01:08.9]} 31. Qd8 {[%clk 0:01:01.7]} 31... Kg7 {[%clk
0:00:58.3]} 32. Bc7 {[%clk 0:00:59.6]} 32... Be7 {[%clk 0:00:57]} 33. Qb8 {[%clk
0:00:52.1]} 33... h5 {[%clk 0:00:41.9]} 34. Qb7 {[%clk 0:00:47.5]} 34... Na4
{[%clk 0:00:29.9]} 35. Bxa4 {[%clk 0:00:32.2]} 35... bxa4 {[%clk 0:00:31.8]} 36.
Qd5 {[%clk 0:00:31.8]} 36... Nxb2 {[%clk 0:00:17.9]} 37. Be5+ {[%clk 0:00:32.2]}
37... Bf6 {[%clk 0:00:19.2]} 38. Bxf6+ {[%clk 0:00:33.3]} 38... Rxf6 {[%clk
0:00:21.1]} 39. Qd4 {[%clk 0:00:34.4]} 39... Nd1 {[%clk 0:00:15.5]} 40. Qxd1
{[%clk 0:00:34.8]} 40... Kh7 {[%clk 0:00:15.8]} 41. Qxa4 {[%clk 0:00:34.9]} 1-0

[Event "*** Titled Tuesday Blitz"]
[Site "Chess.com"]
[Date "2019.04.02"]
[Round "8"]
[White "BlueWizzard"]
[Black "scaryninja"]
[Result "1-0"]
[WhiteElo "2707"]
[BlackElo "2477"]
[TimeControl "180+2"]
[EndTime "15:49:41 PDT"]
[Termination "BlueWizzard won by resignation"]

1. e4 {[%clk 0:03:01.9]} 1... c5 {[%clk 0:02:59.4]} 2. Nf3 {[%clk 0:03:02.4]}
2... d6 {[%clk 0:02:57.9]} 3. Be2 {[%clk 0:03:03.5]} 3... Nc6 {[%clk 0:02:54.1]}
4. c3 {[%clk 0:03:04.4]} 4... e5 {[%clk 0:02:52]} 5. d4 {[%clk 0:03:04.6]} 5...
cxd4 {[%clk 0:02:49.9]} 6. cxd4 {[%clk 0:03:05.4]} 6... exd4 {[%clk 0:02:43.3]}
7. O-O {[%clk 0:03:05.4]} 7... Nf6 {[%clk 0:02:42.2]} 8. Nxd4 {[%clk 0:03:05.7]}
8... Be7 {[%clk 0:02:40.2]} 9. Nc3 {[%clk 0:03:04.3]} 9... O-O {[%clk
0:02:40.7]} 10. Bc4 {[%clk 0:03:00.8]} 10... Ne5 {[%clk 0:02:40.4]} 11. Bb3
{[%clk 0:03:01.3]} 11... a6 {[%clk 0:02:36.7]} 12. f4 {[%clk 0:02:55.7]} 12...
Ng6 {[%clk 0:02:21.9]} 13. Kh1 {[%clk 0:02:47.9]} 13... Qa5 {[%clk 0:02:15.7]}
14. Nd5 {[%clk 0:02:42.7]} 14... Nxd5 {[%clk 0:01:51.9]} 15. Bxd5 {[%clk
0:02:42.9]} 15... Bf6 {[%clk 0:01:50.6]} 16. Bd2 {[%clk 0:02:38.1]} 16... Qb6
{[%clk 0:01:48.1]} 17. Bc3 {[%clk 0:02:38.4]} 17... Bd7 {[%clk 0:01:45.2]} 18.
a4 {[%clk 0:02:33.4]} 18... Rac8 {[%clk 0:01:44]} 19. Qd2 {[%clk 0:02:29.6]}
19... Bc6 {[%clk 0:01:32.7]} 20. a5 {[%clk 0:02:18]} 20... Qd8 {[%clk
0:01:18.5]} 21. Nxc6 {[%clk 0:02:08.6]} 21... bxc6 {[%clk 0:01:17.7]} 22. Bc4
{[%clk 0:02:06.8]} 22... Bxc3 {[%clk 0:01:14.1]} 23. bxc3 {[%clk 0:02:07.4]}
23... Qc7 {[%clk 0:00:57.2]} 24. f5 {[%clk 0:01:45.9]} 24... Ne5 {[%clk
0:00:57.2]} 25. f6 {[%clk 0:01:47.2]} 25... Ng6 {[%clk 0:00:27.8]} 26. Qd4
{[%clk 0:01:42.9]} 26... gxf6 {[%clk 0:00:20.9]} 27. Rxf6 {[%clk 0:01:33.1]}
27... d5 {[%clk 0:00:20.1]} 28. Bxa6 {[%clk 0:01:21.5]} 28... Ra8 {[%clk
0:00:17.1]} 29. Qb6 {[%clk 0:01:22.3]} 29... Qe5 {[%clk 0:00:16.5]} 30. Rxc6
{[%clk 0:01:19.8]} 30... dxe4 {[%clk 0:00:14.4]} 31. Bb7 {[%clk 0:01:20.5]}
31... Rad8 {[%clk 0:00:12.7]} 32. a6 {[%clk 0:01:07.3]} 32... e3 {[%clk
0:00:13.8]} 33. Rc5 {[%clk 0:00:57.5]} 33... Qf4 {[%clk 0:00:06.8]} 34. Rd5
{[%clk 0:00:57.2]} 34... Rxd5 {[%clk 0:00:04]} 35. Bxd5 {[%clk 0:00:57.9]} 35...
e2 {[%clk 0:00:03.6]} 36. a7 {[%clk 0:00:57.7]} 36... Qf1+ {[%clk 0:00:04.7]}
37. Qg1 {[%clk 0:00:58]} 37... Re8 {[%clk 0:00:03.3]} 38. Re1 {[%clk 0:00:53.1]}
38... Qf6 {[%clk 0:00:03.5]} 39. Rxe2 {[%clk 0:00:51.5]} 39... Rxe2 {[%clk
0:00:03.8]} 40. a8=Q+ {[%clk 0:00:52.4]} 40... Kg7 {[%clk 0:00:05.7]} 41. Qaa1
{[%clk 0:00:52.2]} 41... Ne5 {[%clk 0:00:05.1]} 42. c4 {[%clk 0:00:53.3]} 42...
Ng4 {[%clk 0:00:04.7]} 43. Qxf6+ {[%clk 0:00:49.4]} 43... Kxf6 {[%clk
0:00:06.6]} 44. h3 {[%clk 0:00:50.4]} 44... Nf2+ {[%clk 0:00:07.6]} 45. Kh2
{[%clk 0:00:51.4]} 45... Nd3 {[%clk 0:00:06.7]} 46. Qd4+ {[%clk 0:00:52.1]}
46... Ne5 {[%clk 0:00:07.5]} 47. c5 {[%clk 0:00:52.4]} 1-0

[Event "*** Titled Tuesday Blitz"]
[Site "Chess.com"]
[Date "2019.04.02"]
[Round "8"]
[White "Kawhi_Leonard2"]
[Black "Martins-BR"]
[Result "0-1"]
[WhiteElo "2197"]
[BlackElo "2250"]
[TimeControl "180+2"]
[EndTime "15:49:45 PDT"]
[Termination "Martins-BR won by resignation"]

1. e4 {[%clk 0:03:01.9]} 1... c5 {[%clk 0:02:59.9]} 2. Nf3 {[%clk 0:03:03]} 2...
e6 {[%clk 0:03:00.5]} 3. d4 {[%clk 0:03:04.6]} 3... cxd4 {[%clk 0:03:01.9]} 4.
Nxd4 {[%clk 0:03:06.4]} 4... Nc6 {[%clk 0:03:02.9]} 5. Nc3 {[%clk 0:03:07.9]}
5... Qc7 {[%clk 0:03:03]} 6. Be2 {[%clk 0:03:08.2]} 6... a6 {[%clk 0:03:02.5]}
7. O-O {[%clk 0:03:09.2]} 7... Nf6 {[%clk 0:02:57.8]} 8. Be3 {[%clk 0:03:09.9]}
8... b5 {[%clk 0:02:57.3]} 9. Nxc6 {[%clk 0:03:08.2]} 9... dxc6 {[%clk
0:02:55.9]} 10. Bd3 {[%clk 0:03:09.4]} 10... Be7 {[%clk 0:02:53.3]} 11. a4
{[%clk 0:03:10.4]} 11... Bb7 {[%clk 0:02:50.4]} 12. axb5 {[%clk 0:03:10.6]}
12... cxb5 {[%clk 0:02:49.7]} 13. Qf3 {[%clk 0:02:27.8]} 13... O-O {[%clk
0:02:41.3]} 14. Rfe1 {[%clk 0:02:28.2]} 14... Bd6 {[%clk 0:02:15.5]} 15. Qh3
{[%clk 0:02:01.8]} 15... Be5 {[%clk 0:02:12.6]} 16. Bg5 {[%clk 0:01:55.5]} 16...
h6 {[%clk 0:02:09.6]} 17. Bh4 {[%clk 0:01:51.4]} 17... Rfc8 {[%clk 0:01:41.5]}
18. Bg3 {[%clk 0:01:51.2]} 18... Bxg3 {[%clk 0:01:39.5]} 19. Qxg3 {[%clk
0:01:50.3]} 19... Qxg3 {[%clk 0:01:31.4]} 20. hxg3 {[%clk 0:01:52.2]} 20... Nd7
{[%clk 0:01:28.2]} 21. f3 {[%clk 0:01:24.6]} 21... Ne5 {[%clk 0:01:25.9]} 22.
Kf2 {[%clk 0:01:24.9]} 22... Rc7 {[%clk 0:01:22.8]} 23. Re2 {[%clk 0:00:35.8]}
23... Rd8 {[%clk 0:01:19.8]} 24. Re3 {[%clk 0:00:30.2]} 24... Nc4 {[%clk
0:01:12.6]} 25. Bxc4 {[%clk 0:00:28.8]} 25... Rxc4 {[%clk 0:01:13.5]} 26. Rd1
{[%clk 0:00:29.9]} 26... Rxd1 {[%clk 0:01:11.7]} 27. Nxd1 {[%clk 0:00:31]} 27...
Rxc2+ {[%clk 0:01:12.7]} 28. Re2 {[%clk 0:00:27.7]} 28... Rxe2+ {[%clk
0:01:08.6]} 29. Kxe2 {[%clk 0:00:29.1]} 29... f6 {[%clk 0:01:00]} 30. Kd3 {[%clk
0:00:30.4]} 30... e5 {[%clk 0:00:53.4]} 31. b4 {[%clk 0:00:23.8]} 31... Kf7
{[%clk 0:00:52.7]} 32. Ne3 {[%clk 0:00:23.4]} 32... g6 {[%clk 0:00:47.7]} 33.
Nc2 {[%clk 0:00:22.5]} 33... Ke6 {[%clk 0:00:47.1]} 34. Na1 {[%clk 0:00:23.1]}
34... Kd6 {[%clk 0:00:42.5]} 35. Nb3 {[%clk 0:00:24.2]} 35... Bc8 {[%clk
0:00:40]} 36. Kc3 {[%clk 0:00:22.4]} 36... Be6 {[%clk 0:00:39.6]} 37. Nc5 {[%clk
0:00:23.3]} 37... Bc4 {[%clk 0:00:36.7]} 38. Nb7+ {[%clk 0:00:21.1]} 38... Kc6
{[%clk 0:00:30.4]} 39. Nc5 {[%clk 0:00:21.5]} 39... a5 {[%clk 0:00:29.4]} 0-1

[Event "*** Titled Tuesday Blitz"]
[Site "Chess.com"]
[Date "2019.04.02"]
[Round "8"]
[White "bugsbunny444"]
[Black "FedaMaster"]
[Result "1/2-1/2"]
[WhiteElo "2496"]
[BlackElo "2604"]
[TimeControl "180+2"]
[EndTime "15:49:52 PDT"]
[Termination "Game drawn by agreement"]

1. Nf3 {[%clk 0:03:01.9]} 1... Nf6 {[%clk 0:02:50]} 2. c4 {[%clk 0:03:02.2]}
2... g6 {[%clk 0:02:49.9]} 3. b4 {[%clk 0:03:03]} 3... d5 {[%clk 0:02:49.9]} 4.
cxd5 {[%clk 0:03:03.4]} 4... Nxd5 {[%clk 0:02:50.1]} 5. Bb2 {[%clk 0:03:04.3]}
5... f6 {[%clk 0:02:49.7]} 6. a3 {[%clk 0:03:01.5]} 6... e5 {[%clk 0:02:49.6]}
7. d3 {[%clk 0:03:01]} 7... Bg7 {[%clk 0:02:50.4]} 8. g3 {[%clk 0:02:58.5]} 8...
O-O {[%clk 0:02:50.2]} 9. Bg2 {[%clk 0:02:59.9]} 9... Be6 {[%clk 0:02:51.7]} 10.
O-O {[%clk 0:03:00.3]} 10... c6 {[%clk 0:02:51.6]} 11. Nbd2 {[%clk 0:03:00.5]}
11... a5 {[%clk 0:02:51.9]} 12. d4 {[%clk 0:02:52.8]} 12... axb4 {[%clk
0:02:41]} 13. dxe5 {[%clk 0:02:53.8]} 13... bxa3 {[%clk 0:02:42.4]} 14. Rxa3
{[%clk 0:02:52]} 14... Rxa3 {[%clk 0:02:41.6]} 15. Bxa3 {[%clk 0:02:52.9]} 15...
Re8 {[%clk 0:02:42.3]} 16. exf6 {[%clk 0:02:39.3]} 16... Nxf6 {[%clk 0:02:44.2]}
17. Qb1 {[%clk 0:02:35.2]} 17... Qc7 {[%clk 0:02:35.7]} 18. Ng5 {[%clk
0:02:32.7]} 18... Bd5 {[%clk 0:02:27.5]} 19. e4 {[%clk 0:02:33.5]} 19... Bf7
{[%clk 0:02:28.3]} 20. h3 {[%clk 0:02:04.8]} 20... Na6 {[%clk 0:02:09.9]} 21.
Nxf7 {[%clk 0:01:47.7]} 21... Qxf7 {[%clk 0:02:10.6]} 22. f4 {[%clk 0:01:46.8]}
22... Nh5 {[%clk 0:02:10.6]} 23. Kh2 {[%clk 0:01:44.7]} 23... Bc3 {[%clk
0:02:09]} 24. Nf3 {[%clk 0:01:37.6]} 24... b5 {[%clk 0:02:09.5]} 25. Ng5 {[%clk
0:01:34.6]} 25... Qc4 {[%clk 0:02:10.1]} 26. e5 {[%clk 0:01:29.9]} 26... b4
{[%clk 0:02:10]} 27. Bb2 {[%clk 0:01:18.5]} 27... Nc5 {[%clk 0:02:10.8]} 28.
Bxc6 {[%clk 0:00:58.1]} 28... Bxb2 {[%clk 0:02:04.7]} 29. Qxb2 {[%clk
0:00:52.6]} 29... Qxf1 {[%clk 0:02:01.1]} 30. Bxe8 {[%clk 0:00:53.8]} 30... Nxf4
{[%clk 0:01:52.8]} 31. Bf7+ {[%clk 0:00:24.8]} 31... Kf8 {[%clk 0:01:49.8]} 32.
e6 {[%clk 0:00:24.5]} 32... Qe2+ {[%clk 0:01:32.8]} 33. Qxe2 {[%clk 0:00:25.3]}
33... Nxe2 {[%clk 0:01:34.7]} 34. Nxh7+ {[%clk 0:00:27]} 34... Ke7 {[%clk
0:01:35.9]} 35. Ng5 {[%clk 0:00:22.3]} 35... Kf6 {[%clk 0:01:29.5]} 36. h4
{[%clk 0:00:23.3]} 36... Nd4 {[%clk 0:01:24.9]} 37. Nh7+ {[%clk 0:00:15.6]}
37... Kg7 {[%clk 0:01:23.4]} 38. Ng5 {[%clk 0:00:16.9]} 38... Nf5 {[%clk
0:01:23]} 39. Kh3 {[%clk 0:00:14.2]} 39... Ne7 {[%clk 0:01:22.5]} 40. Nf3 {[%clk
0:00:09.8]} 40... b3 {[%clk 0:01:22.9]} 41. Nd2 {[%clk 0:00:09.6]} 41... b2
{[%clk 0:01:24.5]} 42. h5 {[%clk 0:00:09.7]} 42... Ne4 {[%clk 0:01:23.2]} 43.
Nb1 {[%clk 0:00:06.6]} 43... gxh5 {[%clk 0:01:22.1]} 44. Bxh5 {[%clk 0:00:07.5]}
44... Nd5 {[%clk 0:01:21.2]} 45. Bf3 {[%clk 0:00:07.6]} 45... Ng5+ {[%clk
0:01:20.3]} 46. Kg4 {[%clk 0:00:09.1]} 46... Nxf3 {[%clk 0:01:20.8]} 47. Kxf3
{[%clk 0:00:10.5]} 47... Kf6 {[%clk 0:01:21.6]} 48. Ke4 {[%clk 0:00:11.9]} 48...
Kxe6 {[%clk 0:01:22.7]} 49. Kd4 {[%clk 0:00:13.1]} 49... Nf6 {[%clk 0:01:16.5]}
50. Kc4 {[%clk 0:00:14]} 50... Ne4 {[%clk 0:01:17.8]} 51. Kb3 {[%clk 0:00:15.3]}
51... Nxg3 {[%clk 0:01:18.7]} 52. Kxb2 {[%clk 0:00:16.6]} 52... Ne2 {[%clk
0:01:18.4]} 53. Nc3 {[%clk 0:00:17.3]} 1/2-1/2

[Event "*** Titled Tuesday Blitz"]
[Site "Chess.com"]
[Date "2019.04.02"]
[Round "8"]
[White "TheBigBadChessDad"]
[Black "VFernandezB"]
[Result "0-1"]
[WhiteElo "2220"]
[BlackElo "2294"]
[TimeControl "180+2"]
[EndTime "15:50:09 PDT"]
[Termination "VFernandezB won on time"]

1. d4 {[%clk 0:03:01.9]} 1... Nf6 {[%clk 0:02:59.2]} 2. Nf3 {[%clk 0:03:02.5]}
2... e6 {[%clk 0:03:00.2]} 3. Bf4 {[%clk 0:03:03.1]} 3... d5 {[%clk 0:02:59.8]}
4. e3 {[%clk 0:03:04.2]} 4... Bd6 {[%clk 0:03:00.8]} 5. Bg3 {[%clk 0:03:04.8]}
5... c5 {[%clk 0:03:02.3]} 6. c3 {[%clk 0:03:04.6]} 6... Nc6 {[%clk 0:03:03.1]}
7. Nbd2 {[%clk 0:03:05.2]} 7... O-O {[%clk 0:03:03.1]} 8. Bd3 {[%clk 0:03:06.1]}
8... b6 {[%clk 0:03:04.5]} 9. e4 {[%clk 0:03:07.1]} 9... Be7 {[%clk 0:03:04.5]}
10. e5 {[%clk 0:03:07.4]} 10... Nh5 {[%clk 0:03:06.1]} 11. a3 {[%clk 0:03:02.6]}
11... Bb7 {[%clk 0:02:54]} 12. Qe2 {[%clk 0:02:49]} 12... a5 {[%clk 0:02:52.4]}
13. O-O {[%clk 0:02:21.2]} 13... Nxg3 {[%clk 0:02:51.4]} 14. fxg3 {[%clk
0:02:19.1]} 14... Qc8 {[%clk 0:02:45.5]} 15. Kh1 {[%clk 0:02:18.4]} 15... Ba6
{[%clk 0:02:46]} 16. Rf2 {[%clk 0:02:10]} 16... Bxd3 {[%clk 0:02:43.3]} 17. Qxd3
{[%clk 0:02:11.2]} 17... Qa6 {[%clk 0:02:45.2]} 18. Qe3 {[%clk 0:02:11.6]} 18...
a4 {[%clk 0:02:36.4]} 19. Raf1 {[%clk 0:02:02.5]} 19... Na5 {[%clk 0:02:27.3]}
20. Ng5 {[%clk 0:02:02]} 20... Bxg5 {[%clk 0:02:13.8]} 21. Qxg5 {[%clk
0:02:02.9]} 21... Qd3 {[%clk 0:02:15.7]} 22. Nf3 {[%clk 0:01:45.6]} 22... Qg6
{[%clk 0:02:13.6]} 23. Qd2 {[%clk 0:01:32.2]} 23... Nb3 {[%clk 0:01:44.6]} 24.
Qd1 {[%clk 0:01:22.3]} 24... Rac8 {[%clk 0:01:25.5]} 25. Nd2 {[%clk 0:01:15.5]}
25... Nxd2 {[%clk 0:01:08.6]} 26. Rxd2 {[%clk 0:01:14.4]} 26... cxd4 {[%clk
0:01:10]} 27. Rxd4 {[%clk 0:01:12.3]} 27... b5 {[%clk 0:01:09.6]} 28. Rg4 {[%clk
0:00:58.2]} 28... Qh6 {[%clk 0:00:59.3]} 29. Rb4 {[%clk 0:00:55.1]} 29... Rc5
{[%clk 0:00:56.3]} 30. Qe2 {[%clk 0:00:53.7]} 30... Rb8 {[%clk 0:00:49.7]} 31.
h3 {[%clk 0:00:52.1]} 31... Qg5 {[%clk 0:00:47.8]} 32. Kh2 {[%clk 0:00:45.6]}
32... h5 {[%clk 0:00:47.4]} 33. Rxf7 {[%clk 0:00:39.9]} 33... Kxf7 {[%clk
0:00:41.2]} 34. Qf2+ {[%clk 0:00:40.7]} 34... Kg8 {[%clk 0:00:41.9]} 35. Qxc5
{[%clk 0:00:40.5]} 35... Qxe5 {[%clk 0:00:43.1]} 36. Rxb5 {[%clk 0:00:29.2]}
36... h4 {[%clk 0:00:35.6]} 37. Rxb8+ {[%clk 0:00:21.4]} 37... Qxb8 {[%clk
0:00:37.5]} 38. Qe3 {[%clk 0:00:18.3]} 38... hxg3+ {[%clk 0:00:37.5]} 39. Qxg3
{[%clk 0:00:20.2]} 39... Qxb2 {[%clk 0:00:38.4]} 40. Qe5 {[%clk 0:00:15.1]}
40... Qb6 {[%clk 0:00:33.3]} 41. h4 {[%clk 0:00:10.3]} 41... Kf7 {[%clk
0:00:33.4]} 42. h5 {[%clk 0:00:10.8]} 42... Qf2 {[%clk 0:00:29.6]} 43. Qg5
{[%clk 0:00:09.4]} 43... Qf6 {[%clk 0:00:27.7]} 44. Qg3 {[%clk 0:00:02.2]} 44...
e5 {[%clk 0:00:25.7]} 0-1